fUST/lending_fUST_20251008
["ID","MTS","AMOUNT","RATE_DAILY","PERIOD"]
[390000128,1759926646063,-23153.77,0.00021369,2]
[390000129,1759926646074,-151.0,0.00021369,7]
[390000130,1759926646085,-152.138977,0.00021369,7]
[390000131,1759926646095,-151.0,0.00021369,7]
[390000132,1759926646105,-151.0,0.00021369,7]
[390000134,1759926646115,-1275.49,0.00021369,2]
[390000135,1759926646124,-151.0,0.00021369,7]
[390000137,1759926646134,-151.0,0.00021369,7]
[390000139,1759926646144,-500.0,0.00021369,2]
[390000141,1759926646154,-248.391291,0.00021369,7]
[390000143,1759926646163,-151.0,0.00021369,7]
[390000145,1759926646172,-153.531877,0.00021369,7]
[390000148,1759926646182,-500.0,0.00021369,2]
[390000150,1759926646191,-952.12,0.00021369,2]
[390000152,1759926646200,-151.0,0.00021369,7]
[390000154,1759926646210,-952.12,0.00021369,2]
[390000156,1759926646219,-151.0,0.00021369,7]
[390000159,1759926646229,-952.12,0.00021369,2]
[390000161,1759926646239,-151.0,0.00021369,7]
[390000164,1759926646250,-952.12,0.00021369,2]
[390000166,1759926646259,-952.12,0.00021369,2]
[390000168,1759926646269,-151.0,0.00021369,7]
[390000169,1759926646279,-952.12,0.00021369,2]
[390000171,1759926646289,-152.149213,0.00021369,7]
[390000173,1759926646299,-952.12,0.00021369,2]
[390000174,1759926646308,-500.0,0.00021369,2]
[390000175,1759926646318,-952.12,0.00021369,2]
[390000176,1759926646327,-500.0,0.00021369,2]
[390000177,1759926646340,-151.561202,0.00021369,7]
[390000178,1759926646351,-952.12,0.00021369,2]
[390000179,1759926646360,-952.12,0.00021369,2]
[390000180,1759926646370,-6044.21,0.00021369,2]
[390000182,1759926646379,-952.12,0.00021369,2]
[390000184,1759926646389,-952.12,0.00021369,2]
[390000185,1759926646398,-952.12,0.00021369,2]
[390000187,1759926646407,-952.12,0.00021369,2]
[390000190,1759926646417,-952.12,0.00021369,2]
[390000192,1759926646427,-952.12,0.00021369,2]
[390000193,1759926646437,-952.12,0.00021369,2]
[390000195,1759926646446,-941.94,0.00021369,2]
[390000198,1759926646456,-941.94,0.00021369,2]
[390000200,1759926646466,-941.94,0.00021369,2]
[390000201,1759926646475,-500.0,0.00021369,2]
[390000204,1759926646486,-941.94,0.00021369,2]
[390000206,1759926646497,-500.0,0.00021369,2]
[390000208,1759926646506,-941.94,0.00021369,2]
[390000210,1759926646516,-941.94,0.00021369,2]
[390000212,1759926646525,-500.0,0.00021369,2]
[390000214,1759926646535,-952.12,0.00021369,2]
[390000216,1759926646545,-941.94,0.00021369,2]
[390000218,1759926646554,-952.12,0.00021369,2]
[390000220,1759926646565,-941.94,0.00021369,2]
[390000222,1759926646574,-952.12,0.00021369,2]
[390000224,1759926646585,-941.94,0.00021369,2]
[390000226,1759926646597,-952.12,0.00021369,2]
[390000227,1759926646607,-941.94,0.00021369,2]
[390000228,1759926646618,-941.94,0.00021369,2]
[390000229,1759926646627,-2137.32,0.00021369,2]
[390000230,1759926646637,-941.94,0.00021369,2]
[390000231,1759926646647,-5077.29,0.00021369,2]
[390000232,1759926646657,-941.94,0.00021369,2]
[390000233,1759926646667,-952.12,0.00021369,2]
[390000234,1759926646677,-941.94,0.00021369,2]
[390000236,1759926646687,-941.94,0.00021369,2]
[390000238,1759926646697,-952.12,0.00021369,2]
[390000240,1759926646707,-941.94,0.00021369,2]
[390000241,1759926646717,-952.25013657,0.00021369,2]
[390000242,1759926646726,-941.94,0.00021369,2]
[390000243,1759926646736,-941.94,0.00021369,2]
[390000245,1759926646746,-941.94,0.00021369,2]
[390000247,1759926646755,-500.0,0.00021369,2]
[390000249,1759926646764,-941.94,0.00021369,2]
[390000251,1759926646774,-941.94,0.00021369,2]
[390000252,1759926646784,-166.802273,0.00021369,7]
[390000253,1759926646793,-941.94,0.00021369,2]
[390000254,1759926646802,-941.94,0.00021369,2]
[390000255,1759926646812,-166.802273,0.00021369,7]
[390000256,1759926646821,-166.802273,0.00021369,7]
[390000257,1759926646831,-500.0,0.00021369,2]
[390000258,1759926646841,-942.16636747,0.00021369,2]
[390000259,1759926646851,-166.802273,0.00021369,7]
[390000260,1759926646860,-166.802273,0.00021369,7]
[390000261,1759926646869,-500.0,0.00021369,2]
[390000262,1759926646879,-166.802273,0.00021369,7]
[390000263,1759926646889,-2783.25,0.00021369,2]
[390000264,1759926646898,-166.802273,0.00021369,7]
[390000265,1759926646908,-166.802273,0.00021369,7]
[390000266,1759926646918,-166.802273,0.00021369,7]
[390000268,1759926646928,-166.802273,0.00021369,7]
[390000270,1759926646937,-166.802273,0.00021369,7]
[390000272,1759926646946,-166.802273,0.00021369,7]
[390000274,1759926646955,-480.78310842,0.00021369,2]
[390000275,1759926646965,-166.802273,0.00021369,7]
[390000276,1759926646974,-166.802273,0.00021369,7]
[390000277,1759926646983,-500.0,0.00021369,2]
[390000278,1759926646992,-166.802273,0.00021369,7]
[390000279,1759926647002,-166.802273,0.00021369,7]
[390000280,1759926647011,-166.802273,0.00021369,7]
[390000281,1759926647021,-166.802273,0.00021369,7]
[390000282,1759926647031,-166.802273,0.00021369,7]
[390000283,1759926647047,-482.76278669,0.00021369,2]
[390000284,1759926647063,-166.802265,0.00021369,7]
[390000285,1759926647073,-500.0,0.00021369,2]
[390000286,1759926647082,-935.55,0.00021369,2]
[390000287,1759926647092,-733.0,0.00021369,2]
[390000288,1759926647101,-500.0,0.00021369,2]
[390000289,1759926647111,-500.0,0.00021369,2]
[390000291,1759926647121,-926.65,0.00021369,2]
[390000293,1759926647130,-1365.82,0.00021369,2]
[390000295,1759926647139,-2134.24,0.00021369,2]
[390000298,1759926647149,-10058.96,0.00021369,2]
[390000300,1759926647158,-500.0,0.00021369,2]
[390000301,1759926647168,-4872.23,0.00021369,2]
[390000303,1759926647177,-500.0,0.00021369,2]
[390000306,1759926647187,-1916.23,0.00021369,2]
[390000308,1759926647196,-159.04390858,0.00021369,2]
[390000310,1759926647206,-1023.03,0.00021369,2]
[390000312,1759926647215,-151.0,0.00021369,2]
[390000313,1759926647225,-1000.0,0.00021369,2]
[390000316,1759926647234,-15075.12,0.00021369,2]
[390000317,1759926647244,-500.0,0.00021369,2]
[390000319,1759926647253,-500.0,0.00021369,2]
[390000321,1759926647262,-500.0,0.00021369,2]
[390000323,1759926647271,-3468.59,0.00021369,2]
[390000324,1759926647280,-500.0,0.00021369,2]
[390000326,1759926647290,-500.0,0.00021369,2]
[390000328,1759926647299,-8668.28,0.00021369,2]
[390000330,1759926647308,-530.69263608,0.00021369,2]
[390000332,1759926647320,-500.0,0.00021369,2]
[390000333,1759926647331,-500.0,0.00021369,2]
[390000334,1759926647344,-4690.88,0.00021369,2]
[390000335,1759926647354,-502.4,0.00021369,2]
[390000336,1759926647364,-500.0,0.00021369,2]
[390000337,1759926647374,-775.02,0.00021369,2]
[390000338,1759926647386,-6237.73,0.00021369,2]
[390000339,1759926647395,-7828.61,0.00021369,2]
[390000340,1759926647405,-2917.71,0.00021369,2]
[390000341,1759926647418,-613.48,0.00021369,2]
[390000342,1759926647429,-8271.92,0.00021369,2]
[390000343,1759926647439,-1648.65,0.00021369,2]
[390000344,1759926647448,-701.15,0.00021369,2]
[390000345,1759926647457,-1558.54,0.00021369,2]
[390000346,1759926647466,-2268.72,0.00021369,2]
[390000347,1759926647476,-2552.85,0.00021369,2]
[390000348,1759926647486,-500.0,0.00021369,2]
[390000349,1759926647496,-2268.72,0.00021369,2]
[390000350,1759926647506,-2268.72,0.00021369,2]
[390000351,1759926647516,-2268.72,0.00021369,2]
[390000352,1759926647526,-2268.72,0.00021369,2]
[390000353,1759926647536,-2268.72,0.00021369,2]
[390000354,1759926647545,-2268.72,0.00021369,2]
[390000355,1759926647555,-2268.72,0.00021369,2]
[390000356,1759926647564,-2268.72,0.00021369,2]
[390000357,1759926647574,-2268.72,0.00021369,2]
[390000358,1759926647584,-2268.72,0.00021369,2]
[390000359,1759926647593,-2268.72,0.00021369,2]
[390000360,1759926647603,-2268.72,0.00021369,2]
[390000361,1759926647614,-500.0,0.00021369,2]
[390000362,1759926647624,-151.0,0.00021369,7]
[390000363,1759926647634,-903.84,0.00021369,2]
[390000364,1759926647643,-152.69582877,0.00021369,7]
[390000365,1759926647653,-2268.72,0.00021369,2]
[390000366,1759926647663,-2268.72,0.00021369,2]
[390000367,1759926647673,-727.01,0.00021369,2]
[390000368,1759926647682,-2268.72,0.00021369,2]
[390000369,1759926647692,-2268.72,0.00021369,2]
[390000370,1759926647702,-2268.72,0.00021369,2]
[390000371,1759926647713,-2146.76712682,0.00021369,2]
[390000391,1759926648415,659.0,0.0002699,120]
[390000392,1759926648836,154.0,0.00024,120]
[390000393,1759926649283,659.0,0.0002834,120]
[390000394,1759926649403,154.0,0.000253,120]
[390000395,1759926649587,154.0,0.000267,120]
[390000396,1759926649914,154.0,0.00028,120]
[390000397,1759926650683,732.0,0.0002191,120]
[390000398,1759926650909,4674.50702083,0.00028667,120]
[390000399,1759926650946,732.0,0.000219,120]
[390000400,1759926651085,732.0,0.0002189,120]
[390000401,1759926651225,732.0,0.0002297,120]
[390000402,1759926651493,732.0,0.0002296,120]
[390000403,1759926651562,732.0,0.0002295,120]
[390000404,1759926651626,732.0,0.0002297,120]
[390000405,1759926651681,732.0,0.0002296,120]
[390000406,1759926651907,732.0,0.0002381,120]
[390000407,1759926652382,736.15,0.000238,120]
[390000408,1759926659796,500.0,0.00023,120]
[390000409,1759926660610,500.0,0.00023,120]
[390000410,1759926664430,5000.0,0.00028767,120]
[390000411,1759926671591,1000.0,0.00027397,120]
[390000412,1759926684911,500.0,0.00028767,120]
[390000413,1759926685651,199.999999,0.000285,120]
[390000414,1759926688622,1042.87955,0.00028767,120]
[390000415,1759926695086,1000.0,0.00028767,120]
[390000416,1759926698284,550.0,0.000273,120]
[390000417,1759926706261,500.0,0.00028767,120]
[390000418,1759926716562,1187.87467925,0.00028767,120]
[390000419,1759926716807,1000.0,0.00028767,120]
[390000420,1759926729712,500.0,0.00023,120]
[390000421,1759926734452,510.0,0.00028767,120]
[390000423,1759926772194,3081.61,0.00028767,120]
[390000424,1759926816890,2295.61,0.00028767,120]
[390000428,1759926854403,5000.0,0.0001965,14]
[390000433,1759926865857,151.0,0.000181,2]
[390000434,1759926866055,151.0,0.000183,2]
[390000435,1759926866874,151.0,0.000185,2]
[390000436,1759926867057,151.0,0.000187,2]
[390000437,1759926867566,151.0,0.000189,2]
[390000438,1759926868067,151.0,0.000191,2]
[390000439,1759926878243,5000.0,0.0001965,14]
[390000440,1759926902363,5000.0,0.0001965,14]
[390000441,1759926903134,3188.46966823,0.00018033,2]
[390000442,1759926925190,5000.0,0.00019576,2]
[390000443,1759926930646,200.0,0.00024761,120]
[390000444,1759926934219,329.0,0.00023005,120]
[390000445,1759926935621,329.0,0.00024155,120]
[390000446,1759926937019,329.0,0.00025363,120]
[390000447,1759926938490,329.0,0.00026631,120]
[390000448,1759926939894,329.0,0.00027963,120]
[390000449,1759926948762,905.54033177,0.00019576,2]
[390000450,1759926948785,4094.45966823,0.00019576,2]
[390000451,1759926974814,1000.0,0.00028493,120]
[390000452,1759926975066,1000.0,0.00028493,120]
[390000453,1759926975301,1000.0,0.00028493,120]
[390000454,1759926975543,1000.0,0.00028493,120]
[390000455,1759926975787,1000.0,0.00028493,120]
[390000456,1759926976027,1000.0,0.00028493,120]
[390000457,1759926976261,1000.0,0.00028493,120]
[390000458,1759926976503,1000.0,0.00028493,120]
[390000459,1759926976756,1000.0,0.00028493,120]
[390000460,1759926977068,1000.0,0.00028493,120]
[390000461,1759926977248,1000.0,0.00028493,120]
[390000462,1759926977482,1000.0,0.00028493,120]
[390000463,1759926977727,1000.0,0.00028493,120]
[390000464,1759926977954,1000.0,0.00028493,120]
[390000465,1759926978184,1000.0,0.00028493,120]
[390000466,1759926978425,1000.0,0.00028493,120]
[390000467,1759926978675,405.3863727,0.00028493,120]
[390000469,1759926990777,1000.0,0.00027397,120]
[390000470,1759926991115,200.0,0.00028296,120]
[390000471,1759926997976,200.0,0.000191,2]
[390000472,1759927040660,1006.17,0.00028493,120]
[390000473,1759927040906,1006.17,0.0002852,120]
[390000474,1759927041178,1006.17,0.00028547,120]
[390000475,1759927041428,1006.17,0.00028575,120]
[390000476,1759927041695,1006.17,0.00028602,120]
[390000477,1759927042135,1006.17,0.0002863,120]
[390000478,1759927042209,1006.17,0.00028657,120]
[390000479,1759927042482,1006.17,0.00028684,120]
[390000480,1759927042759,1006.17,0.00028712,120]
[390000481,1759927043022,1006.17,0.00028739,120]
[390000482,1759927043311,1006.17,0.00028767,120]
[390000483,1759927048570,555.0,0.00028767,120]
[390000484,1759927050872,200.0,0.00028192,120]
[390000485,1759927168258,5000.0,0.0001965,14]
[390000486,1759927191036,5000.0,0.0001965,14]
[390000487,1759927218360,1000.0,0.00028,120]
[390000488,1759927233197,165.0,0.00026817,120]
[390000489,1759927234911,165.0,0.00028158,120]
[390000490,1759927289135,532.78,0.00028767,120]
[390000491,1759927303479,385.47335911,0.000273,120]
[390000500,1759927355460,181.66915187,0.00028767,120]
[390000501,1759927361289,159.011883,0.00024,30]
[390000502,1759927389122,3679.1,0.0002876,120]
[390000503,1759927410708,5000.0,0.0001965,14]
[390000504,1759927433853,5000.0,0.0001965,14]
[390000505,1759927529056,1000.0,0.00028493,120]
[390000506,1759927529294,1000.0,0.0002852,120]
[390000507,1759927529539,1000.0,0.00028547,120]
[390000508,1759927529615,170.0,0.00027711,120]
[390000509,1759927529768,1000.0,0.00028575,120]
[390000510,1759927530026,1000.0,0.00028602,120]
[390000511,1759927530273,1000.0,0.0002863,120]
[390000512,1759927530517,1000.0,0.00028657,120]
[390000513,1759927530758,1000.0,0.00028684,120]
[390000514,1759927530993,1000.0,0.00028712,120]
[390000515,1759927531348,200.0,0.00023919,120]
[390000516,1759927531428,1000.0,0.00028739,120]
[390000517,1759927531608,1000.0,0.00028767,120]
[390000518,1759927539635,157.487859,0.00024,30]
[390000519,1759927590864,200.0,0.0002556,120]
[390000520,1759927623337,1000.0,0.00027397,120]
[390000521,1759927641141,-164.33573277,0.00019207,2]
[390000522,1759927641161,-991.80161999,0.00019306,2]
[390000523,1759927646098,-1023.52507961,0.00019307,2]
[390000524,1759927646118,-180.37633991,0.00019345,2]
[390000525,1759927646137,-495.60331562,0.00019502,2]
[390000526,1759927646156,-4.81499809,0.0001951,2]
[390000527,1759927650827,200.0,0.00027276,120]
[390000528,1759927710836,200.0,0.00025944,120]
[390000529,1759927757142,-195.18500191,0.0001951,2]
[390000530,1759927757162,-389.74759809,0.0001951,2]
[390000531,1759927830869,200.0,0.00027404,120]
[390001235,1759927840133,-120.47091638,0.0001951,2]
[390001237,1759927840142,-160.0,0.00019797,2]
[390001239,1759927840151,-231.0,0.000199,2]
[390001241,1759927840160,-238.0,0.0002,2]
[390001243,1759927840169,-586.75129164,0.0002011,2]
[390001245,1759927840180,-1162.42057321,0.00020449,2]
[390001247,1759927840189,-1162.42057321,0.00020699,2]
[390001249,1759927840198,-663.28406881,0.0002071,2]
[390001251,1759927840207,-168.0,0.00020901,2]
[390001253,1759927840216,-1162.42057321,0.0002091,2]
[390001255,1759927840225,-179.0,0.00020942,2]
[390001257,1759927840233,-846.0,0.00020985,2]
[390001259,1759927840242,-300.0,0.00020986,2]
[390001261,1759927840251,-366.6240207,0.00020986,2]
[390001263,1759927840260,-151.0,0.00020987,2]
[390001265,1759927840269,-12077.09695428,0.00020987,2]
[390001267,1759927840281,-1326.66510949,0.00020987,2]
[390001272,1759927840314,-5200.12163623,0.00020987,2]
[390001273,1759927840323,-179.0,0.00020994,2]
[390001275,1759927840333,-173.745,0.00020997,2]
[390001278,1759927840342,-569.83394371,0.00020997,2]
[390001279,1759927840352,-500.0,0.00020997,2]
[390001281,1759927840361,-2000.0,0.00021,2]
[390001284,1759927840371,-199.0,0.00021014,3]
[390001285,1759927840380,-220.45904377,0.00021066,2]
[390001288,1759927840390,-179.0,0.00021145,2]
[390001290,1759927840399,-160.0,0.00021166,2]
[390001291,1759927840408,-160.0,0.00021166,2]
[390001293,1759927840417,-160.0,0.00021166,2]
[390001295,1759927840427,-234.25206901,0.00021166,2]
[390001297,1759927840437,-234.25206901,0.00021166,2]
[390001299,1759927840446,-402.0838479,0.00021166,2]
[390001302,1759927840456,-160.0,0.00021166,2]
[390001303,1759927840465,-982.49433183,0.000212,2]
[390001305,1759927840475,-168.0,0.00021202,2]
[390001307,1759927840484,-2075.39155164,0.00021267,7]
[390001310,1759927840494,-278.0943276,0.00021268,2]
[390001312,1759927840504,-160.06347338,0.00021268,2]
[390001314,1759927840514,-23853.66920252,0.00021269,2]
[390001316,1759927840523,-2170.88512352,0.00021269,2]
[390001318,1759927840532,-43291.73783966,0.00021269,2]
[390001320,1759927840542,-1162.42057324,0.00021291,2]
[390001322,1759927840551,-739.81684599,0.0002131,2]
[390001324,1759927840559,-179.0,0.00021327,2]
[390001326,1759927840571,-3316.57,0.00021359,3]
[390001328,1759927840579,-1658.28,0.00021359,3]
[390001330,1759927840589,-829.14,0.00021359,3]
[390001332,1759927840597,-414.57,0.00021359,3]
[390001333,1759927840606,-207.29,0.00021359,3]
[390001336,1759927840616,-621.87,0.00021359,3]
[390001338,1759927840626,-155.0,0.00021368,2]
[390001340,1759927840635,-155.0,0.00021368,2]
[390001341,1759927840644,-1000.0,0.00021368,2]
[390001343,1759927840653,-500.0,0.00021369,2]
[390001346,1759927840663,-506.15442407,0.00021369,2]
[390001347,1759927840672,-500.0,0.00021369,2]
[390001349,1759927840681,-480.62103042,0.00021369,2]
[390001351,1759927840691,-500.0,0.00021369,2]
[390001353,1759927840700,-481.9587971,0.00021369,2]
[390001355,1759927840709,-500.0,0.00021369,2]
[390001357,1759927840719,-887.96,0.00021369,2]
[390001359,1759927840728,-500.0,0.00021369,2]
[390001362,1759927840738,-626.69998853,0.00021369,2]
[390001363,1759927840748,-488.51803412,0.00021369,2]
[390001365,1759927840757,-500.0,0.00021369,2]
[390001367,1759927840770,-648.55491075,0.00021369,2]
[390001369,1759927840779,-210.09295459,0.00021369,2]
[390001371,1759927840789,-500.0,0.00021369,2]
[390001373,1759927840799,-636.64,0.00021369,2]
[390001375,1759927840808,-500.0,0.00021369,2]
[390001377,1759927840818,-517.15310094,0.00021369,2]
[390001379,1759927840826,-500.0,0.00021369,2]
[390001381,1759927840836,-2967.02,0.00021369,2]
[390001383,1759927840845,-500.0,0.00021369,2]
[390001385,1759927840854,-650.98,0.00021369,2]
[390001387,1759927840864,-500.0,0.00021369,2]
[390001389,1759927840873,-500.0,0.00021369,2]
[390001391,1759927840882,-500.0,0.00021369,2]
[390001393,1759927840892,-500.0,0.00021369,2]
[390001395,1759927840902,-672.91,0.00021369,2]
[390001397,1759927840911,-500.0,0.00021369,2]
[390001399,1759927840921,-798.8,0.00021369,2]
[390001401,1759927840930,-500.0,0.00021369,2]
[390001403,1759927840939,-636.13,0.00021369,2]
[390001405,1759927840949,-500.0,0.00021369,2]
[390001407,1759927840957,-500.36223708,0.00021369,2]
[390001409,1759927840966,-500.0,0.00021369,2]
[390001411,1759927840976,-1495.76,0.00021369,2]
[390001413,1759927840986,-500.0,0.00021369,2]
[390001415,1759927840995,-500.0,0.00021369,2]
[390001417,1759927841004,-500.0,0.00021369,2]
[390001419,1759927841013,-500.0,0.00021369,2]
[390001421,1759927841023,-747.51,0.00021369,2]
[390001423,1759927841031,-500.0,0.00021369,2]
[390001425,1759927841041,-500.0,0.00021369,2]
[390001427,1759927841050,-2665.07,0.00021369,2]
[390001429,1759927841060,-151.0,0.00021369,7]
[390001431,1759927841069,-500.0,0.00021369,2]
[390001433,1759927841078,-500.0,0.00021369,2]
[390001435,1759927841087,-500.0,0.00021369,2]
[390001437,1759927841096,-931.48,0.00021369,2]
[390001439,1759927841106,-602.77,0.00021369,2]
[390001441,1759927841115,-500.0,0.00021369,2]
[390001443,1759927841125,-2939.04,0.00021369,2]
[390001445,1759927841134,-500.0,0.00021369,2]
[390001447,1759927841143,-500.0,0.00021369,2]
[390001449,1759927841153,-500.0,0.00021369,2]
[390001451,1759927841162,-2783.25,0.00021369,2]
[390001453,1759927841171,-500.0,0.00021369,2]
[390001455,1759927841181,-926.65,0.00021369,2]
[390001457,1759927841190,-480.0,0.00021369,2]
[390001459,1759927841202,-1755.82,0.00021369,2]
[390001461,1759927841211,-917.22,0.00021369,2]
[390001463,1759927841220,-701.15,0.00021369,2]
[390001465,1759927841230,-500.0,0.00021369,2]
[390001467,1759927841238,-500.0,0.00021369,2]
[390001469,1759927841247,-493.4051597,0.00021369,2]
[390001471,1759927841257,-3815.09,0.00021369,2]
[390001473,1759927841266,-558.92,0.00021369,2]
[390001475,1759927841275,-195.54744213,0.00021369,2]
[390001477,1759927841284,-2092.12,0.00021369,2]
[390001479,1759927841295,-198.0,0.00021369,2]
[390001481,1759927841304,-151.0001049,0.00021369,2]
[390001483,1759927841313,-462.03460363,0.00021369,2]
[390001485,1759927841322,-183.60611055,0.00021369,2]
[390001487,1759927841331,-500.0,0.00021369,2]
[390001489,1759927841340,-649.85617838,0.00021369,2]
[390001491,1759927841349,-504.01,0.00021369,2]
[390001493,1759927841359,-181.0667701,0.00021369,2]
[390001495,1759927841368,-249.23815358,0.00021369,2]
[390001497,1759927841377,-5425.83,0.00021369,2]
[390001499,1759927841387,-2095.8,0.00021369,2]
[390001501,1759927841396,-500.0,0.00021369,2]
[390001503,1759927841405,-500.0,0.00021369,2]
[390001505,1759927841414,-500.0,0.00021369,2]
[390001507,1759927841423,-500.0,0.00021369,2]
[390001509,1759927841432,-1097.42,0.00021369,2]
[390001511,1759927841441,-500.0,0.00021369,2]
[390001513,1759927841450,-500.0,0.00021369,2]
[390001515,1759927841459,-500.0,0.00021369,2]
[390001517,1759927841468,-500.0,0.00021369,2]
[390001519,1759927841477,-500.0,0.00021369,2]
[390001521,1759927841485,-503.894047,0.00021369,2]
[390001523,1759927841495,-480.0,0.00021369,2]
[390001525,1759927841504,-500.0,0.00021369,2]
[390001527,1759927841513,-2389.44,0.00021369,2]
[390001529,1759927841522,-267.01280845,0.00021369,2]
[390001531,1759927841531,-500.0,0.00021369,2]
[390001533,1759927841540,-941.94,0.00021369,2]
[390001535,1759927841550,-941.94,0.00021369,2]
[390001537,1759927841560,-941.94,0.00021369,2]
[390001539,1759927841569,-941.94,0.00021369,2]
[390001541,1759927841578,-941.94,0.00021369,2]
[390001543,1759927841588,-941.94,0.00021369,2]
[390001544,1759927841597,-941.94,0.00021369,2]
[390001545,1759927841606,-941.94,0.00021369,2]
[390001546,1759927841615,-941.94,0.00021369,2]
[390001547,1759927841623,-941.94,0.00021369,2]
[390001549,1759927841632,-941.94,0.00021369,2]
[390001551,1759927841641,-941.94,0.00021369,2]
[390001553,1759927841650,-941.94,0.00021369,2]
[390001555,1759927841660,-500.0,0.00021369,2]
[390001557,1759927841668,-941.94,0.00021369,2]
[390001559,1759927841678,-941.94,0.00021369,2]
[390001561,1759927841687,-941.94,0.00021369,2]
[390001563,1759927841696,-941.94,0.00021369,2]
[390001565,1759927841705,-941.94,0.00021369,2]
[390001567,1759927841714,-941.94,0.00021369,2]
[390001569,1759927841723,-941.94,0.00021369,2]
[390001571,1759927841732,-941.94,0.00021369,2]
[390001573,1759927841741,-941.94,0.00021369,2]
[390001575,1759927841751,-941.94,0.00021369,2]
[390001577,1759927841761,-942.16636747,0.00021369,2]
[390001579,1759927841772,-748.7,0.00021369,2]
[390001581,1759927841781,-580.56,0.00021369,2]
[390001582,1759927841790,-500.0,0.00021369,2]
[390001585,1759927841800,-411.16439146,0.00021369,2]
[390001586,1759927841810,-500.0,0.00021369,2]
[390001588,1759927841819,-500.0,0.00021369,2]
[390001590,1759927841828,-500.0,0.00021369,2]
[390001592,1759927841840,-500.0,0.00021369,2]
[390001595,1759927841850,-1558.54,0.00021369,2]
[390001596,1759927841859,-2480.0,0.00021369,2]
[390001599,1759927841869,-500.0,0.00021369,2]
[390001600,1759927841879,-1065.03,0.00021369,2]
[390001603,1759927841889,-785.46,0.00021369,2]
[390001604,1759927841898,-500.0,0.00021369,2]
[390001606,1759927841907,-500.0,0.00021369,2]
[390001608,1759927841917,-500.0,0.00021369,2]
[390001610,1759927841927,-500.0,0.00021369,2]
[390001612,1759927841936,-500.0,0.00021369,2]
[390001614,1759927841945,-462.77192884,0.00021369,2]
[390001616,1759927841955,-500.0,0.00021369,2]
[390001619,1759927841964,-502.4,0.00021369,2]
[390001620,1759927841973,-584.28,0.00021369,2]
[390001623,1759927841983,-500.0,0.00021369,2]
[390001625,1759927841992,-500.0,0.00021369,2]
[390001627,1759927842001,-500.0,0.00021369,2]
[390001629,1759927842011,-1259.82,0.00021369,2]
[390001630,1759927842020,-857.9,0.00021369,2]
[390001633,1759927842030,-500.0,0.00021369,2]
[390001635,1759927842039,-500.0,0.00021369,2]
[390001637,1759927842049,-500.0,0.00021369,2]
[390001639,1759927842058,-822.0,0.00021369,2]
[390001640,1759927842068,-1275.49,0.00021369,2]
[390001642,1759927842077,-72.10762809,0.00021369,2]
[390001675,1759927842362,666.66666667,0.00016429,4]
[390001742,1759927842939,666.66666667,0.0001,2]